[Event "Titled Tuesday Blitz July 11 Late 2023"]
[White "Todorovic, Bojan"]
[Black "Zavgorodniy, Sergiy"]
[WhiteFideId "917087"]
[BlackFideId "14110148"]
[WhiteElo "2386"]
[BlackElo "2598"]
[Result "1-0"]
[Round "4"]
[TimeControl "180+2"]
[Date "2023.07.11"]
[WhiteClock "0:00:24"]
[BlackClock "0:00:02"]
[Board "76"]

1. d4 {[%clk 0:02:59]}  d5 {[%clk 0:02:57]} 2. c4 {[%clk 0:02:59]}  dxc4 {[%clk 0:02:58]} 3. Nf3 {[%clk 0:02:57]}  Nf6 {[%clk 0:02:58]} 4. e3 {[%clk 0:02:57]}  e6 {[%clk 0:02:59]} 5. Bxc4 {[%clk 0:02:56]}  a6 {[%clk 0:02:59]} 6. O-O {[%clk 0:02:56]}  b5 {[%clk 0:03:00]} 7. Bb3 {[%clk 0:02:55]}  Bb7 {[%clk 0:03:01]} 8. Qe2 {[%clk 0:02:49]}  Nbd7 {[%clk 0:03:00]} 9. Rd1 {[%clk 0:02:48]}  c5 {[%clk 0:03:00]} 10. dxc5 {[%clk 0:02:47]}  Bxc5 {[%clk 0:03:00]} 11. Nc3 {[%clk 0:02:44]}  O-O {[%clk 0:03:00]} 12. e4 {[%clk 0:02:36]}  Ng4 {[%clk 0:02:59]} 13. Nd4 {[%clk 0:02:23]}  Qh4 {[%clk 0:02:50]} 14. h3 {[%clk 0:02:18]}  Nxf2 {[%clk 0:02:41]} 15. Qxf2 {[%clk 0:02:17]}  Qxf2+ {[%clk 0:02:40]} 16. Kxf2 {[%clk 0:02:18]}  e5 {[%clk 0:02:41]} 17. Be3 {[%clk 0:02:18]}  exd4 {[%clk 0:02:40]} 18. Bxd4 {[%clk 0:02:18]}  Bxd4+ {[%clk 0:02:39]} 19. Rxd4 {[%clk 0:02:18]}  Ne5 {[%clk 0:02:39]} 20. Nd5 {[%clk 0:02:14]}  Bxd5 {[%clk 0:02:29]} 21. exd5 {[%clk 0:02:14]}  Rfd8 {[%clk 0:02:07]} 22. d6 {[%clk 0:02:11]}  Kf8 {[%clk 0:02:01]} 23. Rc1 {[%clk 0:01:54]}  Rac8 {[%clk 0:01:59]} 24. Rc7 {[%clk 0:01:52]}  f6 {[%clk 0:01:28]} 25. g4 {[%clk 0:01:45]}  Nc4 {[%clk 0:01:10]} 26. Bxc4 {[%clk 0:01:41]}  bxc4 {[%clk 0:01:10]} 27. Rdxc4 {[%clk 0:01:41]}  Rxc7 {[%clk 0:01:10]} 28. dxc7 {[%clk 0:01:40]}  Rc8 {[%clk 0:01:11]} 29. Rc6 {[%clk 0:01:34]}  a5 {[%clk 0:01:10]} 30. Rc5 {[%clk 0:01:33]}  a4 {[%clk 0:01:08]} 31. Rc4 {[%clk 0:01:34]}  Ke7 {[%clk 0:01:04]} 32. Rxa4 {[%clk 0:01:33]}  Rxc7 {[%clk 0:01:05]} 33. Ke3 {[%clk 0:01:30]}  Rc2 {[%clk 0:01:03]} 34. Rb4 {[%clk 0:01:27]}  Rh2 {[%clk 0:01:03]} 35. a4 {[%clk 0:01:26]}  Rxh3+ {[%clk 0:01:02]} 36. Kd4 {[%clk 0:01:27]}  Kd6 {[%clk 0:00:57]} 37. Rb7 {[%clk 0:01:17]}  Rg3 {[%clk 0:00:53]} 38. Rxg7 {[%clk 0:01:14]}  Rb3 {[%clk 0:00:53]} 39. Rxh7 {[%clk 0:01:03]}  Rxb2 {[%clk 0:00:49]} 40. Ke4 {[%clk 0:00:57]}  Ke6 {[%clk 0:00:40]} 41. Ra7 {[%clk 0:00:55]}  Rb4+ {[%clk 0:00:40]} 42. Kf3 {[%clk 0:00:56]}  Rb3+ {[%clk 0:00:37]} 43. Kf4 {[%clk 0:00:55]}  Rb4+ {[%clk 0:00:37]} 44. Kg3 {[%clk 0:00:56]}  f5 {[%clk 0:00:33]} 45. Ra6+ {[%clk 0:00:51]}  Ke5 {[%clk 0:00:25]} 46. Ra5+ {[%clk 0:00:51]}  Ke6 {[%clk 0:00:25]} 47. gxf5+ {[%clk 0:00:49]}  Kf6 {[%clk 0:00:25]} 48. Kf3 {[%clk 0:00:47]}  Rb3+ {[%clk 0:00:22]} 49. Ke4 {[%clk 0:00:47]}  Rb4+ {[%clk 0:00:23]} 50. Kd3 {[%clk 0:00:47]}  Rf4 {[%clk 0:00:21]} 51. Kc3 {[%clk 0:00:46]}  Rg4 {[%clk 0:00:15]} 52. Kb3 {[%clk 0:00:43]}  Rf4 {[%clk 0:00:15]} 53. Rc5 {[%clk 0:00:39]}  Ke7 {[%clk 0:00:14]} 54. a5 {[%clk 0:00:39]}  Kd6 {[%clk 0:00:14]} 55. Rb5 {[%clk 0:00:35]}  Kc6 {[%clk 0:00:13]} 56. Rb6+ {[%clk 0:00:35]}  Kc5 {[%clk 0:00:14]} 57. f6 {[%clk 0:00:35]}  Rf3+ {[%clk 0:00:13]} 58. Kc2 {[%clk 0:00:34]}  Ra3 {[%clk 0:00:13]} 59. f7 {[%clk 0:00:34]}  Rxa5 {[%clk 0:00:13]} 60. f8=Q+ {[%clk 0:00:30]}  Kxb6 {[%clk 0:00:13]} 61. Kc3 {[%clk 0:00:30]}  Rc5+ {[%clk 0:00:12]} 62. Kb4 {[%clk 0:00:30]}  Rc6 {[%clk 0:00:12]} 63. Qd8+ {[%clk 0:00:29]}  Kb7 {[%clk 0:00:12]} 64. Kb5 {[%clk 0:00:29]}  Rc7 {[%clk 0:00:11]} 65. Qd5+ {[%clk 0:00:28]}  Ka7 {[%clk 0:00:09]} 66. Qe6 {[%clk 0:00:26]}  Kb7 {[%clk 0:00:07]} 67. Qe4+ {[%clk 0:00:26]}  Ka7 {[%clk 0:00:07]} 68. Qd5 {[%clk 0:00:26]}  Rb7+ {[%clk 0:00:06]} 69. Kc6 {[%clk 0:00:25]}  Rb6+ {[%clk 0:00:04]} 70. Kc7 {[%clk 0:00:25]}  Rb2 {[%clk 0:00:01]} 71. Qd4+ {[%clk 0:00:24]}  Rb6 {[%clk 0:00:01]} 72. Qxb6+ {[%clk 0:00:24]}  Ka8 {[%clk 0:00:02]} 73. Qb7# {[%clk 0:00:24]} 1-0


[Site "https://www.chess.com"]

[Event "Titled Tuesday Blitz July 11 Late 2023"]
[White "Janturin, Artur"]
[Black "Tarasova, Viktoriya"]
[WhiteFideId "4130022"]
[BlackFideId "4175840"]
[WhiteElo "2596"]
[BlackElo "2382"]
[Result "1-0"]
[Round "4"]
[TimeControl "180+2"]
[Date "2023.07.11"]
[WhiteClock "0:00:15"]
[BlackClock "0:00:00"]
[Board "77"]

1. e4 {[%clk 0:02:57]}  e5 {[%clk 0:02:59]} 2. Nf3 {[%clk 0:02:57]}  Nc6 {[%clk 0:02:59]} 3. g3 {[%clk 0:02:54]}  Bc5 {[%clk 0:02:58]} 4. Bg2 {[%clk 0:02:54]}  d6 {[%clk 0:02:57]} 5. O-O {[%clk 0:02:53]}  Nf6 {[%clk 0:02:57]} 6. Nc3 {[%clk 0:02:52]}  O-O {[%clk 0:02:56]} 7. d3 {[%clk 0:02:52]}  h6 {[%clk 0:02:56]} 8. a3 {[%clk 0:02:52]}  a5 {[%clk 0:02:55]} 9. Be3 {[%clk 0:02:50]}  Bg4 {[%clk 0:02:49]} 10. h3 {[%clk 0:02:48]}  Bxf3 {[%clk 0:02:49]} 11. Qxf3 {[%clk 0:02:47]}  Bxe3 {[%clk 0:02:43]} 12. Qxe3 {[%clk 0:02:43]}  Nd4 {[%clk 0:02:42]} 13. Rac1 {[%clk 0:02:42]}  Nd7 {[%clk 0:02:37]} 14. Ne2 {[%clk 0:02:38]}  Nxe2+ {[%clk 0:02:30]} 15. Qxe2 {[%clk 0:02:39]}  c6 {[%clk 0:02:30]} 16. c3 {[%clk 0:02:35]}  Qb6 {[%clk 0:02:28]} 17. Kh2 {[%clk 0:02:33]}  Nc5 {[%clk 0:02:26]} 18. f4 {[%clk 0:02:25]}  f6 {[%clk 0:02:26]} 19. h4 {[%clk 0:02:24]}  a4 {[%clk 0:02:08]} 20. Rcd1 {[%clk 0:02:16]}  Ne6 {[%clk 0:01:59]} 21. Bh3 {[%clk 0:02:14]}  Rae8 {[%clk 0:01:59]} 22. Qf2 {[%clk 0:01:55]}  Qc7 {[%clk 0:01:47]} 23. Qf3 {[%clk 0:01:28]}  Nc5 {[%clk 0:01:22]} 24. Rd2 {[%clk 0:01:17]}  Re7 {[%clk 0:01:16]} 25. Bf5 {[%clk 0:01:14]}  Ree8 {[%clk 0:00:49]} 26. Qg4 {[%clk 0:01:07]}  Rd8 {[%clk 0:00:09]} 27. Qg6 {[%clk 0:00:24]}  Rfe8 {[%clk 0:00:09]} 28. Qh7+ {[%clk 0:00:23]}  Kf8 {[%clk 0:00:09]} 29. Bg6 {[%clk 0:00:21]}  Ne6 {[%clk 0:00:05]} 30. f5 {[%clk 0:00:16]}  Nc5 {[%clk 0:00:00]} 31. Qh8+ {[%clk 0:00:15]} 1-0


[Site "https://www.chess.com"]

[Event "Titled Tuesday Blitz July 11 Late 2023"]
[White "Semenenko, Dmytry"]
[Black "NLLO777"]
[WhiteFideId "14118645"]
[WhiteElo "2362"]
[BlackElo "2592"]
[Result "0-1"]
[Round "4"]
[TimeControl "180+2"]
[Date "2023.07.11"]
[WhiteClock "0:00:17"]
[BlackClock "0:01:03"]
[Board "78"]

1. Nf3 {[%clk 0:03:00]}  Nf6 {[%clk 0:03:00]} 2. c4 {[%clk 0:02:59]}  g6 {[%clk 0:02:59]} 3. d4 {[%clk 0:02:59]}  c5 {[%clk 0:02:58]} 4. e3 {[%clk 0:02:59]}  Bg7 {[%clk 0:02:58]} 5. Nc3 {[%clk 0:02:59]}  O-O {[%clk 0:02:59]} 6. Be2 {[%clk 0:02:58]}  cxd4 {[%clk 0:02:59]} 7. exd4 {[%clk 0:02:58]}  d5 {[%clk 0:02:59]} 8. c5 {[%clk 0:02:58]}  b6 {[%clk 0:02:55]} 9. cxb6 {[%clk 0:02:58]}  axb6 {[%clk 0:02:52]} 10. O-O {[%clk 0:02:57]}  Nc6 {[%clk 0:02:52]} 11. Bg5 {[%clk 0:02:46]}  h6 {[%clk 0:02:50]} 12. Bh4 {[%clk 0:02:45]}  Ne4 {[%clk 0:02:45]} 13. Qb3 {[%clk 0:02:35]}  e6 {[%clk 0:02:37]} 14. Bxd8 {[%clk 0:02:32]}  Rxd8 {[%clk 0:02:26]} 15. Nxe4 {[%clk 0:02:30]}  dxe4 {[%clk 0:02:26]} 16. Qc3 {[%clk 0:02:00]}  Bb7 {[%clk 0:02:06]} 17. Ne5 {[%clk 0:01:59]}  Nxd4 {[%clk 0:02:07]} 18. Qc7 {[%clk 0:01:50]}  Nxe2+ {[%clk 0:02:00]} 19. Kh1 {[%clk 0:01:50]}  Bxe5 {[%clk 0:01:58]} 20. Qxe5 {[%clk 0:01:50]}  Rd2 {[%clk 0:01:52]} 21. Rae1 {[%clk 0:01:43]}  Bd5 {[%clk 0:01:43]} 22. a3 {[%clk 0:01:40]}  Rc8 {[%clk 0:01:35]} 23. f3 {[%clk 0:01:27]}  exf3 {[%clk 0:01:32]} 24. gxf3 {[%clk 0:01:27]}  Rcc2 {[%clk 0:01:30]} 25. Qb8+ {[%clk 0:00:56]}  Kg7 {[%clk 0:01:21]} 26. Rf2 {[%clk 0:00:50]}  Ng3+ {[%clk 0:01:13]} 27. Qxg3 {[%clk 0:00:49]}  Rxf2 {[%clk 0:01:14]} 28. Qe5+ {[%clk 0:00:31]}  f6 {[%clk 0:01:06]} 29. Qg3 {[%clk 0:00:17]}  Bxf3+ {[%clk 0:01:03]} 0-1


[Site "https://www.chess.com"]

[Event "Titled Tuesday Blitz July 11 Late 2023"]
[White "Manukyan, Artyom"]
[Black "rikchessmx"]
[WhiteFideId "13305786"]
[WhiteElo "2576"]
[BlackElo "2257"]
[Result "1-0"]
[Round "4"]
[TimeControl "180+2"]
[Date "2023.07.11"]
[WhiteClock "0:00:01"]
[BlackClock "0:00:00"]
[Board "82"]

1. e4 {[%clk 0:03:00]}  e5 {[%clk 0:02:44]} 2. Nf3 {[%clk 0:03:00]}  Nc6 {[%clk 0:02:43]} 3. Bb5 {[%clk 0:03:01]}  Bc5 {[%clk 0:02:42]} 4. c3 {[%clk 0:02:59]}  Qf6 {[%clk 0:02:42]} 5. O-O {[%clk 0:02:53]}  Nge7 {[%clk 0:02:41]} 6. d4 {[%clk 0:02:53]}  exd4 {[%clk 0:02:40]} 7. e5 {[%clk 0:02:49]}  Nxe5 {[%clk 0:02:40]} 8. Nxe5 {[%clk 0:02:49]}  Qxe5 {[%clk 0:02:40]} 9. Re1 {[%clk 0:02:50]}  Qf6 {[%clk 0:02:40]} 10. cxd4 {[%clk 0:02:46]}  Bxd4 {[%clk 0:02:40]} 11. Be3 {[%clk 0:02:23]}  Bxb2 {[%clk 0:01:59]} 12. Bc5 {[%clk 0:02:22]}  Be5 {[%clk 0:01:50]} 13. Bxe7 {[%clk 0:01:57]}  Qxe7 {[%clk 0:01:45]} 14. Qd5 {[%clk 0:01:56]}  f6 {[%clk 0:01:34]} 15. f4 {[%clk 0:01:53]}  c6 {[%clk 0:01:34]} 16. Qd1 {[%clk 0:01:23]}  Qc5+ {[%clk 0:01:33]} 17. Kh1 {[%clk 0:01:22]}  Qxb5 {[%clk 0:01:28]} 18. fxe5 {[%clk 0:01:16]}  O-O {[%clk 0:01:25]} 19. a4 {[%clk 0:01:15]}  Qb2 {[%clk 0:01:21]} 20. Ra3 {[%clk 0:01:10]}  fxe5 {[%clk 0:01:15]} 21. Rb3 {[%clk 0:01:03]}  Qd4 {[%clk 0:01:10]} 22. Rd3 {[%clk 0:01:01]}  Qc5 {[%clk 0:01:07]} 23. Rd6 {[%clk 0:00:55]}  b5 {[%clk 0:00:49]} 24. a5 {[%clk 0:00:52]}  b4 {[%clk 0:00:44]} 25. h3 {[%clk 0:00:38]}  Qxa5 {[%clk 0:00:44]} 26. Qb3+ {[%clk 0:00:33]}  Kh8 {[%clk 0:00:38]} 27. Nd2 {[%clk 0:00:31]}  Qa3 {[%clk 0:00:35]} 28. Qb1 {[%clk 0:00:16]}  b3 {[%clk 0:00:33]} 29. Nc4 {[%clk 0:00:16]}  Qb4 {[%clk 0:00:31]} 30. Re4 {[%clk 0:00:06]}  Ba6 {[%clk 0:00:23]} 31. Rh4 {[%clk 0:00:06]}  e4 {[%clk 0:00:11]} 32. Qxe4 {[%clk 0:00:05]}  Rf1+ {[%clk 0:00:10]} 33. Kh2 {[%clk 0:00:06]}  Qxd6+ {[%clk 0:00:10]} 34. Nxd6 {[%clk 0:00:05]}  Bd3 {[%clk 0:00:04]} 35. Qxd3 {[%clk 0:00:05]}  h6 {[%clk 0:00:04]} 36. Qg6 {[%clk 0:00:04]}  Rf6 {[%clk 0:00:03]} 37. Rxh6+ {[%clk 0:00:02]}  Kg8 {[%clk 0:00:02]} 38. Qg5 {[%clk 0:00:02]}  Rxh6 {[%clk 0:00:00]} 39. Nc4 {[%clk 0:00:01]} 1-0


[Site "https://www.chess.com"]

[Event "Titled Tuesday Blitz July 11 Late 2023"]
[White "Vujacic, Igor"]
[Black "Shohat, Yotam"]
[WhiteFideId "932620"]
[BlackFideId "2813955"]
[WhiteElo "2205"]
[BlackElo "2571"]
[Result "1/2-1/2"]
[Round "4"]
[TimeControl "180+2"]
[Date "2023.07.11"]
[WhiteClock "0:00:04"]
[BlackClock "0:00:05"]
[Board "84"]

1. d4 {[%clk 0:03:00]}  Nf6 {[%clk 0:02:59]} 2. Bf4 {[%clk 0:02:56]}  g6 {[%clk 0:02:55]} 3. Nc3 {[%clk 0:02:56]}  Bg7 {[%clk 0:02:49]} 4. e4 {[%clk 0:02:55]}  d5 {[%clk 0:02:49]} 5. e5 {[%clk 0:02:41]}  Ne4 {[%clk 0:02:47]} 6. Nce2 {[%clk 0:02:35]}  f6 {[%clk 0:02:40]} 7. f3 {[%clk 0:02:23]}  Ng5 {[%clk 0:02:40]} 8. Qd2 {[%clk 0:02:03]}  Nf7 {[%clk 0:02:39]} 9. exf6 {[%clk 0:02:01]}  exf6 {[%clk 0:02:40]} 10. h4 {[%clk 0:01:59]}  O-O {[%clk 0:02:39]} 11. O-O-O {[%clk 0:01:43]}  Nd6 {[%clk 0:02:30]} 12. Nc3 {[%clk 0:01:40]}  Be6 {[%clk 0:02:21]} 13. g4 {[%clk 0:01:31]}  Re8 {[%clk 0:02:16]} 14. Bd3 {[%clk 0:01:19]}  Nc6 {[%clk 0:02:11]} 15. Nge2 {[%clk 0:01:13]}  Nb4 {[%clk 0:02:10]} 16. g5 {[%clk 0:01:04]}  Nxd3+ {[%clk 0:02:05]} 17. cxd3 {[%clk 0:00:57]}  Nf5 {[%clk 0:02:03]} 18. h5 {[%clk 0:00:53]}  fxg5 {[%clk 0:01:50]} 19. Bxg5 {[%clk 0:00:46]}  Qd7 {[%clk 0:01:49]} 20. hxg6 {[%clk 0:00:34]}  hxg6 {[%clk 0:01:50]} 21. Nf4 {[%clk 0:00:33]}  Kf7 {[%clk 0:01:48]} 22. Rdg1 {[%clk 0:00:25]}  Rh8 {[%clk 0:01:43]} 23. Qg2 {[%clk 0:00:15]}  Rxh1 {[%clk 0:01:35]} 24. Rxh1 {[%clk 0:00:16]}  Rh8 {[%clk 0:01:31]} 25. Rxh8 {[%clk 0:00:13]}  Bxh8 {[%clk 0:01:31]} 26. Bh6 {[%clk 0:00:08]}  Ne7 {[%clk 0:01:24]} 27. Bg5 {[%clk 0:00:08]}  Bf5 {[%clk 0:01:17]} 28. Bxe7 {[%clk 0:00:04]}  Qxe7 {[%clk 0:01:17]} 29. Ncxd5 {[%clk 0:00:04]}  Qe1+ {[%clk 0:01:16]} 30. Kc2 {[%clk 0:00:04]}  Bxd4 {[%clk 0:01:11]} 31. Nc3 {[%clk 0:00:04]}  Qe3 {[%clk 0:00:51]} 32. Qh2 {[%clk 0:00:02]}  Qf2+ {[%clk 0:00:42]} 33. Qxf2 {[%clk 0:00:02]}  Bxf2 {[%clk 0:00:43]} 34. Kd2 {[%clk 0:00:02]}  c6 {[%clk 0:00:42]} 35. Ke2 {[%clk 0:00:02]}  Bd4 {[%clk 0:00:42]} 36. Ng2 {[%clk 0:00:02]}  Be6 {[%clk 0:00:40]} 37. Ne3 {[%clk 0:00:03]}  Bxc3 {[%clk 0:00:40]} 38. bxc3 {[%clk 0:00:04]}  Bxa2 {[%clk 0:00:40]} 39. c4 {[%clk 0:00:04]}  b5 {[%clk 0:00:40]} 40. Kd2 {[%clk 0:00:04]}  bxc4 {[%clk 0:00:38]} 41. dxc4 {[%clk 0:00:04]}  Bb1 {[%clk 0:00:35]} 42. Kc3 {[%clk 0:00:02]}  Ke6 {[%clk 0:00:31]} 43. Kd4 {[%clk 0:00:03]}  Kd6 {[%clk 0:00:26]} 44. c5+ {[%clk 0:00:02]}  Ke6 {[%clk 0:00:26]} 45. Nc4 {[%clk 0:00:03]}  Ba2 {[%clk 0:00:17]} 46. Ne5 {[%clk 0:00:04]}  Bd5 {[%clk 0:00:17]} 47. Nxg6 {[%clk 0:00:04]}  Bxf3 {[%clk 0:00:18]} 48. Ne5 {[%clk 0:00:04]}  Bd5 {[%clk 0:00:17]} 49. Nd3 {[%clk 0:00:05]}  Kd7 {[%clk 0:00:15]} 50. Nb4 {[%clk 0:00:03]}  Bf3 {[%clk 0:00:15]} 51. Na6 {[%clk 0:00:04]}  Kc8 {[%clk 0:00:14]} 52. Nb4 {[%clk 0:00:03]}  a5 {[%clk 0:00:14]} 53. Na2 {[%clk 0:00:03]}  Kb7 {[%clk 0:00:13]} 54. Nc3 {[%clk 0:00:02]}  Ka6 {[%clk 0:00:13]} 55. Ke5 {[%clk 0:00:02]}  Bg4 {[%clk 0:00:07]} 56. Kd6 {[%clk 0:00:03]}  Kb7 {[%clk 0:00:05]} 57. Ke5 {[%clk 0:00:03]}  Bh5 {[%clk 0:00:05]} 58. Kd6 {[%clk 0:00:03]}  Bf7 {[%clk 0:00:05]} 59. Ke5 {[%clk 0:00:02]}  Bb3 {[%clk 0:00:05]} 60. Nb1 {[%clk 0:00:02]}  Ka6 {[%clk 0:00:04]} 61. Kd4 {[%clk 0:00:02]}  Kb5 {[%clk 0:00:03]} 62. Kc3 {[%clk 0:00:02]}  Bd5 {[%clk 0:00:03]} 63. Na3+ {[%clk 0:00:03]}  Kxc5 {[%clk 0:00:04]} 64. Nc2 {[%clk 0:00:03]}  Kb5 {[%clk 0:00:04]} 65. Nd4+ {[%clk 0:00:04]}  Kc5 {[%clk 0:00:04]} 66. Nxc6 {[%clk 0:00:04]}  Kb6 {[%clk 0:00:05]} 67. Nxa5 {[%clk 0:00:04]} 1/2-1/2


[Site "https://www.chess.com"]

[Event "Titled Tuesday Blitz July 11 Late 2023"]
[White "gordonzyxu"]
[Black "Siniauski, Artsiom"]
[BlackFideId "13512269"]
[WhiteElo "1960"]
[BlackElo "2570"]
[Result "0-1"]
[Round "4"]
[TimeControl "180+2"]
[Date "2023.07.11"]
[WhiteClock "0:00:05"]
[BlackClock "0:00:29"]
[Board "85"]

1. e4 {[%clk 0:03:00]}  d6 {[%clk 0:02:51]} 2. d4 {[%clk 0:02:59]}  Nf6 {[%clk 0:02:51]} 3. Nc3 {[%clk 0:02:57]}  Nbd7 {[%clk 0:02:51]} 4. Be3 {[%clk 0:02:57]}  e5 {[%clk 0:02:52]} 5. Nf3 {[%clk 0:02:55]}  c6 {[%clk 0:02:51]} 6. Bc4 {[%clk 0:02:40]}  Be7 {[%clk 0:02:51]} 7. O-O {[%clk 0:02:39]}  Qc7 {[%clk 0:02:49]} 8. Qd2 {[%clk 0:02:21]}  h6 {[%clk 0:02:47]} 9. Rad1 {[%clk 0:02:16]}  b5 {[%clk 0:02:41]} 10. Bxb5 {[%clk 0:02:01]}  cxb5 {[%clk 0:02:40]} 11. Nxb5 {[%clk 0:02:02]}  Qc6 {[%clk 0:02:35]} 12. dxe5 {[%clk 0:01:58]}  dxe5 {[%clk 0:02:33]} 13. Qa5 {[%clk 0:01:50]}  O-O {[%clk 0:02:27]} 14. Nxa7 {[%clk 0:01:20]}  Qxc2 {[%clk 0:02:18]} 15. Nxe5 {[%clk 0:01:06]}  Qxe4 {[%clk 0:01:54]} 16. Nec6 {[%clk 0:01:01]}  Bb7 {[%clk 0:01:46]} 17. Nxe7+ {[%clk 0:00:57]}  Qxe7 {[%clk 0:01:46]} 18. Qc7 {[%clk 0:00:57]}  Qe4 {[%clk 0:01:41]} 19. Qg3 {[%clk 0:00:42]}  Qe5 {[%clk 0:01:13]} 20. f4 {[%clk 0:00:31]}  Qxb2 {[%clk 0:01:08]} 21. Rd2 {[%clk 0:00:20]}  Qa3 {[%clk 0:00:53]} 22. Rfd1 {[%clk 0:00:20]}  Rxa7 {[%clk 0:00:37]} 23. Bxa7 {[%clk 0:00:19]}  Qxa7+ {[%clk 0:00:38]} 24. Rf2 {[%clk 0:00:18]}  Ne4 {[%clk 0:00:34]} 25. Qf3 {[%clk 0:00:10]}  Nxf2 {[%clk 0:00:30]} 26. Qxf2 {[%clk 0:00:10]}  Qxf2+ {[%clk 0:00:31]} 27. Kxf2 {[%clk 0:00:11]}  Nf6 {[%clk 0:00:30]} 28. Rb1 {[%clk 0:00:09]}  Bd5 {[%clk 0:00:30]} 29. a4 {[%clk 0:00:09]}  Ra8 {[%clk 0:00:31]} 30. Rb4 {[%clk 0:00:05]}  Bc6 {[%clk 0:00:29]} 0-1


[Site "https://www.chess.com"]

[Event "Titled Tuesday Blitz July 11 Late 2023"]
[White "Bazeev, German"]
[Black "Srinath, Rao S.V."]
[WhiteFideId "24119350"]
[BlackFideId "5028876"]
[WhiteElo "2794"]
[BlackElo "2512"]
[Result "0-1"]
[Round "4"]
[TimeControl "180+2"]
[Date "2023.07.11"]
[WhiteClock "0:00:02"]
[BlackClock "0:00:11"]
[Board "87"]

1. c4 {[%clk 0:03:00]}  Nf6 {[%clk 0:02:58]} 2. Nc3 {[%clk 0:03:00]}  g6 {[%clk 0:02:58]} 3. d4 {[%clk 0:02:59]}  Bg7 {[%clk 0:02:58]} 4. Nf3 {[%clk 0:02:58]}  O-O {[%clk 0:02:58]} 5. Bg5 {[%clk 0:02:58]}  d6 {[%clk 0:02:53]} 6. e3 {[%clk 0:02:58]}  c5 {[%clk 0:02:51]} 7. Be2 {[%clk 0:02:58]}  Nc6 {[%clk 0:02:50]} 8. O-O {[%clk 0:02:55]}  h6 {[%clk 0:02:41]} 9. Bh4 {[%clk 0:02:54]}  g5 {[%clk 0:02:40]} 10. Bg3 {[%clk 0:02:54]}  Nh5 {[%clk 0:02:31]} 11. d5 {[%clk 0:02:53]}  Nxg3 {[%clk 0:02:30]} 12. hxg3 {[%clk 0:02:52]}  Ne5 {[%clk 0:02:30]} 13. Nd2 {[%clk 0:02:52]}  f5 {[%clk 0:02:20]} 14. f4 {[%clk 0:02:47]}  Nf7 {[%clk 0:02:20]} 15. Qc2 {[%clk 0:02:43]}  a6 {[%clk 0:02:17]} 16. a4 {[%clk 0:02:41]}  b6 {[%clk 0:02:10]} 17. Bh5 {[%clk 0:02:40]}  e5 {[%clk 0:02:02]} 18. dxe6 {[%clk 0:02:32]}  Bxe6 {[%clk 0:02:02]} 19. Nd5 {[%clk 0:02:32]}  Bxd5 {[%clk 0:01:55]} 20. cxd5 {[%clk 0:02:30]}  Qf6 {[%clk 0:01:52]} 21. Nc4 {[%clk 0:01:39]}  b5 {[%clk 0:01:45]} 22. Na5 {[%clk 0:01:39]}  Nd8 {[%clk 0:01:26]} 23. b3 {[%clk 0:01:10]}  Ra7 {[%clk 0:01:09]} 24. Rad1 {[%clk 0:00:53]}  Re7 {[%clk 0:01:07]} 25. Qd2 {[%clk 0:00:36]}  Qc3 {[%clk 0:00:51]} 26. Nc6 {[%clk 0:00:35]}  Rxe3 {[%clk 0:00:50]} 27. Qxc3 {[%clk 0:00:25]}  Bxc3 {[%clk 0:00:51]} 28. Kh2 {[%clk 0:00:25]}  g4 {[%clk 0:00:44]} 29. Rf2 {[%clk 0:00:20]}  Be1 {[%clk 0:00:34]} 30. Ra2 {[%clk 0:00:10]}  Bxg3+ {[%clk 0:00:34]} 31. Kh1 {[%clk 0:00:10]}  Bxf4 {[%clk 0:00:24]} 32. axb5 {[%clk 0:00:10]}  axb5 {[%clk 0:00:24]} 33. Rf1 {[%clk 0:00:11]}  Bg5 {[%clk 0:00:17]} 34. Ra7 {[%clk 0:00:11]}  Rxb3 {[%clk 0:00:15]} 35. Bg6 {[%clk 0:00:11]}  f4 {[%clk 0:00:11]} 36. Bh5 {[%clk 0:00:10]}  f3 {[%clk 0:00:11]} 37. Bxg4 {[%clk 0:00:10]}  fxg2+ {[%clk 0:00:10]} 38. Kxg2 {[%clk 0:00:11]}  Rb2+ {[%clk 0:00:11]} 39. Kg1 {[%clk 0:00:02]}  Be3+ {[%clk 0:00:11]} 0-1


[Site "https://www.chess.com"]

[Event "Titled Tuesday Blitz July 11 Late 2023"]
[White "Yanchenko, Roman"]
[Black "Dragomirescu, Robin-Alexandru"]
[WhiteFideId "4137329"]
[BlackFideId "1213849"]
[WhiteElo "2733"]
[BlackElo "2511"]
[Result "1-0"]
[Round "4"]
[TimeControl "180+2"]
[Date "2023.07.11"]
[WhiteClock "0:02:55"]
[BlackClock "0:01:35"]
[Board "88"]

1. d4 {[%clk 0:03:00]}  Nf6 {[%clk 0:02:58]} 2. c4 {[%clk 0:03:01]}  e6 {[%clk 0:02:54]} 3. Nf3 {[%clk 0:03:01]}  b6 {[%clk 0:02:53]} 4. Nc3 {[%clk 0:03:01]}  Bb4 {[%clk 0:02:51]} 5. Qc2 {[%clk 0:03:01]}  Bb7 {[%clk 0:02:50]} 6. g3 {[%clk 0:03:01]}  c5 {[%clk 0:02:39]} 7. dxc5 {[%clk 0:03:01]}  Bxc5 {[%clk 0:02:37]} 8. Bg2 {[%clk 0:03:01]}  d5 {[%clk 0:02:24]} 9. cxd5 {[%clk 0:03:00]}  Nxd5 {[%clk 0:02:24]} 10. Nxd5 {[%clk 0:03:00]}  Qxd5 {[%clk 0:02:16]} 11. a3 {[%clk 0:02:59]}  a5 {[%clk 0:02:07]} 12. Bd2 {[%clk 0:02:56]}  O-O {[%clk 0:01:35]} 13. Ng5 {[%clk 0:02:55]} 1-0


[Site "https://www.chess.com"]

[Event "Titled Tuesday Blitz July 11 Late 2023"]
[White "Oro, Faustino"]
[Black "Martinez Reyes, Pedro Ramon"]
[WhiteFideId "20000197"]
[BlackFideId "3901807"]
[WhiteElo "2728"]
[BlackElo "2502"]
[Result "1-0"]
[Round "4"]
[TimeControl "180+2"]
[Date "2023.07.11"]
[WhiteClock "0:01:47"]
[BlackClock "0:01:21"]
[Board "89"]

1. e4 {[%clk 0:03:00]}  d5 {[%clk 0:02:59]} 2. exd5 {[%clk 0:03:01]}  Qxd5 {[%clk 0:03:00]} 3. Nc3 {[%clk 0:03:01]}  Qd8 {[%clk 0:03:00]} 4. d4 {[%clk 0:03:01]}  Nf6 {[%clk 0:03:00]} 5. Nf3 {[%clk 0:03:01]}  g6 {[%clk 0:03:00]} 6. Bc4 {[%clk 0:03:02]}  Bg7 {[%clk 0:03:01]} 7. O-O {[%clk 0:03:02]}  O-O {[%clk 0:03:01]} 8. h3 {[%clk 0:03:03]}  Nc6 {[%clk 0:03:00]} 9. Re1 {[%clk 0:03:00]}  b6 {[%clk 0:03:00]} 10. Bf4 {[%clk 0:02:56]}  Bb7 {[%clk 0:02:59]} 11. a3 {[%clk 0:02:55]}  e6 {[%clk 0:02:56]} 12. Qd2 {[%clk 0:02:44]}  Ne7 {[%clk 0:02:56]} 13. Ne5 {[%clk 0:02:40]}  Nf5 {[%clk 0:02:56]} 14. Rad1 {[%clk 0:02:39]}  Nh5 {[%clk 0:02:50]} 15. Bh2 {[%clk 0:02:38]}  Nh4 {[%clk 0:02:50]} 16. d5 {[%clk 0:02:32]}  exd5 {[%clk 0:02:45]} 17. Bxd5 {[%clk 0:02:31]}  Bxd5 {[%clk 0:02:41]} 18. Nxd5 {[%clk 0:02:32]}  Re8 {[%clk 0:02:03]} 19. Nc6 {[%clk 0:02:25]}  Rxe1+ {[%clk 0:02:02]} 20. Rxe1 {[%clk 0:02:14]}  Qf8 {[%clk 0:01:54]} 21. Nxc7 {[%clk 0:02:11]}  Qc5 {[%clk 0:01:24]} 22. Ne7+ {[%clk 0:02:05]}  Kh8 {[%clk 0:01:24]} 23. Nxa8 {[%clk 0:02:01]}  Bxb2 {[%clk 0:01:23]} 24. Qd8+ {[%clk 0:01:54]}  Kg7 {[%clk 0:01:23]} 25. Qg8+ {[%clk 0:01:52]}  Kh6 {[%clk 0:01:23]} 26. Qf8+ {[%clk 0:01:48]}  Bg7 {[%clk 0:01:19]} 27. Ng8+ {[%clk 0:01:48]}  Kg5 {[%clk 0:01:20]} 28. Qxc5+ {[%clk 0:01:47]}  bxc5 {[%clk 0:01:21]} 1-0


[Site "https://www.chess.com"]